Cogmind - Beta 10.2 @@@ ROGUE MODE // 2021.04.21 @ 09:15:47 Player: onyhow Result: Destroyed by D-53 Grenadier with Mini Grenade Launcher Performance ------------- Evolutions (1) 500 Regions Visited (3) 600 Robots Destroyed (53) 265 Value Destroyed (1328) 1328 Prototype IDs (9) 180 Alien Tech Used (0) 0 Bonus (23) 23 TOTAL SCORE: 2896 Bonus ------- High Alert Combat Kills 23 Cogmind --------- Core Integrity 0/400 Matter 127/300 Energy 269/275 System Corruption 2% Temperature Cool (0) Movement Treading (240) Ox4 Location -9/Mines Parts ------- > --- POWER (1) -------- Deuterium Engine > --- PROPULSION (2) --- Light Treads > --- UTILITY (4) ------ High-capacity Storage Unit High-capacity Storage Unit Light Armor Plating > --- WEAPON (2) ------- Autogun Minigun > --- INVENTORY (20) --- Deuterium Engine Deuterium Engine Light Treads Light Treads Light Treads Improved Treads Improved Treads Improved Treads Improved Treads Heat Sink Improved Heat Sink Cooling System Signal Interpreter Light EM Pulse Cannon Minigun Minigun Minigun Peak State ------------ > --- POWER ------------ Deuterium Engine > --- PROPULSION ------- Light Treads Light Treads > --- UTILITY ---------- Improved Heat Sink High-capacity Storage Unit High-capacity Storage Unit Light Armor Plating > --- WEAPON ----------- Autogun Minigun > --- INVENTORY -------- Deuterium Engine Deuterium Engine Light Treads Light Treads Light Treads Improved Treads Improved Treads Improved Treads Improved Treads Heat Sink Improved Heat Sink Cooling System Signal Interpreter Light Armor Plating Light Armor Plating Light EM Pulse Cannon Minigun Minigun Minigun Rocket Launcher [Rating: 19] Favorites ----------- Power Ion Engine Engine Ion Engine Propulsion Light Treads Treads Light Treads Leg Aluminum Leg Utility High-capacity Storage Unit Device Heat Sink Storage High-capacity Storage Unit Protection Light Armor Plating Weapon Heavy Assault Rifle Energy Gun Small Laser Energy Cannon Particle Cannon Ballistic Gun Heavy Assault Rifle Launcher Rocket Launcher Build | -11 -10 -9 -9 ------- Run | Scr Mat Mat Min Slots Evolved 2 | . . 2 . Power . | . . . . Propulsion . | . . . . Utility 2 | . . 2 . Weapon . | . . . . Parts Attached 43 | 5 7 27 4 Power 5 | 1 . 4 . Engine 5 | 1 . 4 . Core . | . . . . Reactor . | . . . . Propulsion 11 | 1 4 6 . Treads 6 | . . 6 . Leg 5 | 1 4 . . Wheel . | . . . . Hover . | . . . . Flight . | . . . . Utility 13 | 1 1 9 2 Device 4 | . . 4 . Storage 4 | 1 1 2 . Processor . | . . . . Hackware . | . . . . Protection 5 | . . 3 2 Artifact . | . . . . Weapon 14 | 2 2 8 2 Energy Gun 4 | 1 . 3 . Energy Cannon 1 | . . 1 . Ballistic Gun 8 | 1 2 4 1 Ballistic Cannon . | . . . . Launcher 1 | . . . 1 Special Weapon . | . . . . Impact Weapon . | . . . . Slashing Weapon . | . . . . Piercing Weapon . | . . . . Special Melee Weapon . | . . . . Unidentified Prototypes . | . . . . Parts Lost 20 | . . 15 5 Power 2 | . . 2 . Propulsion 3 | . . 2 1 Utility 7 | . . 4 3 Weapon 8 | . . 7 1 Highest Loss Streak 5 | . . 3 5 Average Slot Usage (%) 89 | . 83 91 95 Engine 11 | . 14 10 11 Treads 14 | . . 19 19 Leg 7 | . 26 2 . Device 7 | . . 9 8 Storage 19 | . 14 20 22 Protection 5 | . . 6 11 Energy Gun 5 | . 6 5 . Energy Cannon 2 | . . 3 . Ballistic Gun 15 | . 21 13 15 Naked Turns . | . . . . Heaviest Build 84 | 12 47 84 84 Greatest Support 40 | 10 20 40 40 Greatest Overweight (x) 4 | 2 2 4 2 Average Overweight (x) 1 | . . 1 2 Largest Inventory Capacity 20 | 6 14 20 20 Average Capacity 16 | 5 8 19 20 Most Carried 20 | 6 12 20 20 Average Carried 13 | 4 7 15 19 Final Capacity 20 | 6 12 20 20 Final Carried 20 | 5 12 20 17 Class Distribution -------------------- 62% | Hauler-Mutant 35% | Mutant Dominant Class ---------------- Mutant | -10/Materials Hauler-Mutant | -9/Materials Hauler-Mutant | -9/Mines Resources | -11 -10 -9 -9 ----------- Run | Scr Mat Mat Min Matter Collected 1076 | 258 163 654 1 Remotely . | . . . . Salvage Created 1979 | 86 357 1479 57 Parts 126 | . 27 99 . Haulers Intercepted 1 | . . 1 . Recyclers Shooed . | . . . . Parts Field Recycled . | . . . . Retrieved Matter . | . . . . Parts Self-Destructed . | . . . . Prevented . | . . . . Kills | -11 -10 -9 -9 ------- Run | Scr Mat Mat Min Combat Hostiles Destroyed 60 | . 11 32 17 Guns 40 | . 11 29 . Cannons 3 | . . 3 . AOE 17 | . . . 17 Classes Destroyed 12 | 1 2 8 1 Worker 1 | . . 1 . Builder 1 | . . 1 . Hauler 1 | . . 1 . Recycler 4 | 1 . 3 . Mechanic 1 | . . 1 . Operator 1 | . . 1 . Watcher 1 | . . 1 . Swarmer 15 | . 3 12 . Grunt 20 | . 8 12 . Duelist 1 | . . 1 . Sentry 7 | . . 7 . Assembled 17 | . . . 17 Best Kill Streak 17 | 1 4 6 17 Combat Bots Only 17 | . 4 6 17 Max Kills in Single Turn 7 | 1 1 2 7 Gunslinging 1 | . . 1 . Exploded 7 | . . . 7 Melee . | . . . . Uniques/NPCs Destroyed . | . . . . Combat | -11 -10 -9 -9 -------- Run | Scr Mat Mat Min Damage Taken 3034 | . 355 1930 749 Core 467 | . 67 301 99 Absorbed by Shields . | . . . . Core Remaining (%) 86 | 100 73 . . Volleys Fired 163 | 8 26 117 12 Largest 2 | 2 2 2 2 Hottest 91 | 70 73 91 56 Shots Fired 322 | 16 52 230 24 Gun 285 | 16 52 202 15 Cannon 28 | . . 28 . Launcher 9 | . . . 9 Special . | . . . . Kinetic 192 | 8 36 133 15 Thermal 121 | 8 16 97 . Explosive 9 | . . . 9 Electromagnetic . | . . . . Robot Hit Streak 12 | 9 5 12 4 Robot Miss Streak 7 | 2 2 7 2 Penetration Max . | . . . . Secondary Targets 5 | . . 5 . Max Gunslinging Chain 1 | . . 1 . Shots Hit Robots 215 | 10 29 162 14 Core Hits 124 | 2 13 75 34 Critical Hits 2 | . 1 1 . Critical Kills 1 | . 1 . . Critical Parts Destroyed 1 | . . 1 . Melee Attacks . | . . . . Impact . | . . . . Slashing . | . . . . Piercing . | . . . . Sneak Attacks . | . . . . Combat Hostiles . | . . . . Follow-up Attacks . | . . . . Damage Inflicted 3957 | 99 403 2250 1205 Guns 2444 | 99 403 1779 163 Cannons 471 | . . 471 . Explosions 1042 | . . . 1042 Melee . | . . . . Ramming . | . . . . Kinetic 1650 | 36 266 1185 163 Thermal 1265 | 63 137 1065 . Explosive 1042 | . . . 1042 Electromagnetic . | . . . . Impact . | . . . . Slashing . | . . . . Piercing . | . . . . Highest Corruption 2 | . 1 2 2 Average Corruption 1 | . 1 2 2 Corruption Purged . | . . . . Effects 16 | . 1 15 . Message Errors 4 | . 1 3 . Heat Flow Errors 2 | . . 2 . Energy Discharges 2 | . . 2 . Data Loss (minor) 5 | . . 5 . Targeting Errors 2 | . . 2 . Weapon Failures 1 | . . 1 . Overload Shots . | . . . . Overflow Damage 45 | . . 23 22 Projectiles 23 | . . 23 . Explosions 22 | . . . 22 Melee . | . . . . Knockbacks . | . . . . Impact . | . . . . Kinetic . | . . . . Secondary . | . . . . Self-Inflicted Damage 135 | . . . 135 Shots 4 | . . . 4 Rammed . | . . . . Targets Rammed . | . . . . Kicked . | . . . . Crushed . | . . . . Highest Temperature 210 | 100 210 158 57 Average Temperature 49 | 43 77 40 28 Received Heat Transfer 986 | . 168 678 140 Siege Activations . | . . . . Robots Corrupted . | . . . . Combat Hostiles . | . . . . Parts Fried . | . . . . Impact Corruptions . | . . . . Robots Melted . | . . . . Combat Hostiles . | . . . . Parts Melted 1 | . . 1 . Heat Transferred 2559 | 185 407 1967 . Parts Sabotaged . | . . . . Parts Stolen . | . . . . Parts Stripped . | . . . . Power Chain Reactions . | . . . . Missiles Intercepted . | . . . . Alert | -11 -10 -9 -9 ------- Run | Scr Mat Mat Min Peak Influence 490 | 5 227 490 120 Initial 105 | . 3 69 105 Average 203 | . 116 251 104 Maximum Alert Level 2 | . 1 2 . Low Security (%) 47 | 100 77 31 100 Level 1 45 | . 22 58 . Level 2 7 | . . 10 . Level 3 . | . . . . Level 4 . | . . . . Level 5 . | . . . . High Security . | . . . . Max Security . | . . . . Squads Dispatched 4 | . 2 2 . Investigation 2 | . 2 . . Extermination . | . . . . Reinforcement 2 | . . 2 . Assault . | . . . . Garrison . | . . . . Intercept . | . . . . Construction Impeded . | . . . . Haulers Reinforced . | . . . . Stealth | -11 -10 -9 -9 --------- Run | Scr Mat Mat Min Distress Signals 4 | . 1 3 . Communications Jammed . | . . . . Distress Signals . | . . . . Times Spotted 84 | . 13 49 22 Peak Tracking Total 19 | . 7 6 19 Tactical Retreats 5 | . 1 4 . Traps | -11 -10 -9 -9 ------- Run | Scr Mat Mat Min Traps Triggered 2 | . 1 1 . Indirectly . | . . . . Trap Hack Attempts . | . . . . Triggered . | . . . . Disarmed . | . . . . Reprogrammed . | . . . . Reused . | . . . . Traps Extracted . | . . . . Installed . | . . . . Triggered . | . . . . Machines | -11 -10 -9 -9 ---------- Run | Scr Mat Mat Min Machines Disabled 2 | . . 1 1 Max in Single Turn 1 | . . 1 1 Machines Sabotaged . | . . . . Garrisons Compromised . | . . . . Overloaded Fab Kills . | . . . . Fab Network Shutdowns . | . . . . Hacking | -11 -10 -9 -9 --------- Run | Scr Mat Mat Min Machines Accessed 10 | . 3 7 . Terminals 9 | . 3 6 . Fabricators . | . . . . Repair Stations . | . . . . Recycling Units 1 | . . 1 . Scanalyzers . | . . . . Garrison Access . | . . . . Total Hacks 37 | . 14 23 . Successful 18 | . 6 12 . Failed 18 | . 8 10 . Catastrophic 6 | . 4 2 . Database Lockouts 1 | . . 1 . Manual 17 | . 8 9 . Terminals 36 | . 14 22 . Fabricators . | . . . . Repair Stations . | . . . . Recycling Units 1 | . . 1 . Scanalyzers . | . . . . Garrison Access . | . . . . Terminal Hacks 17 | . 6 11 . Record 1 | . . 1 . Part Schematic 4 | . 2 2 . Prototype ID Bank 4 | . 3 1 . Branch Access Points 1 | . . 1 . Alert Level 2 | . . 2 . Unreport Threat 1 | . . 1 . Locate Traps 2 | . 1 1 . Zone Layout 2 | . . 2 . Fabricator Hacks . | . . . . Repair Station Hacks . | . . . . Recycling Unit Hacks 1 | . . 1 . Report Inventory 1 | . . 1 . Scanalyzer . | . . . . Garrison Access Hacks . | . . . . Unauthorized Hacks . | . . . . Terminals . | . . . . Fabricators . | . . . . Repair Stations . | . . . . Recycling Units . | . . . . Scanalyzers . | . . . . Garrison Access . | . . . . Data Cores Recovered . | . . . . Used . | . . . . Hacking Detections 10 | . 3 7 . Full Trace Events 2 | . 2 . . Feedback Events . | . . . . Feedback Blocked . | . . . . Robot Schematics Acquired . | . . . . Robots Built . | . . . . Matter . | . . . . Time . | . . . . Total Robot Build Rating . | . . . . Part Schematics Acquired 4 | . 2 2 . Parts Built . | . . . . Matter . | . . . . Time . | . . . . Total Part Build Rating . | . . . . Parts Repaired . | . . . . Time . | . . . . Parts Recycled . | . . . . Recycled Matter . | . . . . Retrieved Matter . | . . . . Retrieved Components . | . . . . Parts Scanalyzed . | . . . . Part Schematics Acquired . | . . . . Parts Damaged . | . . . . Bothacking | -11 -10 -9 -9 ------------ Run | Scr Mat Mat Min Used RIF Installer . | . . . . Robots Hacked . | . . . . Non-combat . | . . . . Combat . | . . . . Robot Hacks Applied . | . . . . Relay Couplers Released . | . . . . Robots Rewired . | . . . . Allies Hacked . | . . . . Hacks Repelled . | . . . . Allies | -11 -10 -9 -9 -------- Run | Scr Mat Mat Min Total Allies . | . . . . Largest Group . | . . . . Highest-Rated Group . | . . . . Highest-Rated Ally . | . . . . Total Orders . | . . . . Ally Attacks . | . . . . Total Damage . | . . . . Kills . | . . . . Allies Corrupted . | . . . . Allies Melted . | . . . . Intel | -11 -10 -9 -9 ------- Run | Scr Mat Mat Min Robot Analysis Total . | . . . . Derelict Logs Recovered . | . . . . Drone Launches . | . . . . Drone Recoveries . | . . . . Exploration | -11 -10 -9 -9 ------------- Run | Scr Mat Mat Min Turns Passed 2563 | 141 589 1779 54 Spaces Moved 1093 | 75 312 698 8 Core 12 | 12 . . . Treads 642 | . . 634 8 Legs 439 | 63 312 64 . Wheels . | . . . . Hover . | . . . . Flight . | . . . . Fastest Speed 50 | 50 120 180 200 Average Speed 174 | 137 148 190 200 Slowest Speed 240 | 150 180 240 200 Overloaded Moves . | . . . . Propulsion Burnouts . | . . . . Robots Hopped . | . . . . Cave-ins Triggered . | . . . . Exploration Rate (%) 31 | 6 49 63 7 Regions Visited 3 Branch Regions 1 Pre-discovered Areas . | . . . . Known Exits Taken 1 | . . 1 . Unknown Exits Taken 2 | 1 1 . . Scrap Searched . | . . . . Spaces Dug . | . . . . Terrain Destroyed 73 | . . . 73 Melee . | . . . . Projectile . | . . . . AOE 73 | . . . 73 Terrain Rammed . | . . . . Walls Destroyed . | . . . . Machines Disabled . | . . . . Actions | -11 -10 -9 -9 --------- Run | Scr Mat Mat Min Total 1441 | 99 389 929 24 Wait 49 | . 17 32 . Move 1090 | 74 311 697 8 Hop . | . . . . Pick Up 70 | 11 18 41 . Fast Attach . | . . . . Attach 28 | 5 2 18 3 Detach . | . . . . Swap 15 | . 5 9 1 Drop 26 | 1 10 15 . Fire 163 | 8 26 117 12 Melee . | . . . . Ram . | . . . . Kick . | . . . . Crush . | . . . . Escape Stasis . | . . . . Rewire . | . . . . Trap . | . . . . Miscellaneous . | . . . . Route ------- -11/Scrapyard -10/Materials -9/Materials (discovered 3 exits: [*Mat] / *Min x2) -9/Mines History --------- Turn | Location | Event 10 | -11/Scrapyard | Discovered new exit (range 16) 142 | -11/Scrapyard | Entered Materials 315 | -10/Materials | Build established: Mutant 708 | -10/Materials | Discovered new exit (range 12) 731 | -10/Materials | Entered another Materials area 731 | -9/Materials | Evolved 2 slots: Utility x2 739 | -9/Materials | Discovered new exit (range 15) 1199 | -9/Materials | Build established: Hauler-Mutant 1260 | -9/Materials | Lost 3 parts (1p2w) 1340 | -9/Materials | Core integrity fell below 50% 1380 | -9/Materials | Discovered new exit (range 18) 1563 | -9/Materials | Identified exit to Mines 1731 | -9/Materials | Discovered new exit (range 3) 1936 | -9/Materials | Lost 3 parts (1u2w) 1978 | -9/Materials | Central database locked down 2423 | -9/Materials | Lost 3 parts (1n2u) 2510 | -9/Materials | Entered Mines 2511 | -9/Mines | Assembled infested the area 2531 | -9/Mines | Core integrity fell below 20% 2532 | -9/Mines | Met a Derelict bent on vengeance 2564 | -9/Mines | Destroyed by D-53 Grenadier with Mini Grenade Launcher Last Messages --------------- 02540_ The unstable cave ceiling collapses. 02540_ Acquired 1 matter. 02543_ The unstable cave ceiling collapses. 02548_ as-46357 destroyed. 02548_ as-33121 destroyed. 02550_ The unstable cave ceiling collapses. 02551_ Imp. Heat Sink destroyed. 02554_ Destroyed Asb. Hover Unit. 02554_ Destroyed Asb. F-torch. 02555_ The unstable cave ceiling collapses. 02556_ C-30 ARC bursts open, deploying its payload. 02556_ D-53 Grenadier unfolds itself. 02556_ as-54262 destroyed. 02556_ Rocket Launcher destroyed. 02558_ The unstable cave ceiling collapses. 02558_ Lgt. Treads destroyed. 02558_ D-53 Grenadier destroyed. 02559_ The unstable cave ceiling collapses. 02560_ Lgt. Armor Plating destroyed. 02562_ The unstable cave ceiling collapses. Map ----- +----------------------------------------------------+ | ?????????????????????????????????????????? | | ?????????????????????????????????????????? | | ?????????????????????????????????????????? | | ?????????????????????????????????????????? | | ?????????????????????????????????????????? | | ?????????????????????????????????????????? | | ?????????????????????????????????????????? | | ?????????????????????????????????????????? | | ?????????????????????????????????????????? | | ?????????????????????????????????????????? | | ?????????????????????????????????????????? | | ?????????????????????????????????????????? | | ?????????????????????????????????????????? | | ?????????????????????????????????????????? | | ?????????????????????????????????????????? | | ?????????????????????????????#???????????? | | ???????????????????????????? #???????????? | | ???????????????????????????? ##??????????? | | ???????????????????????????? ##?????????? | | ??????????????????????????? #?????????? | | ??????????????????????###?? #?????????? | | ???????????????????#?## ## #??????????? | | ?????????????????### # %d#??????????? | | ?????????????????# ########???? | | ?????????????????# ????? | | ???????????????## # @ #??????????? | | ?????????????# ##?????????? | | ?????????? #?????????? | | ?????????? % #?????????? | | ?????????# # ##?????????? | | ?????????#?? ##??????????? | | ???????????? # ## ## #???????????? | | ??????????? ##??###?# ??????????? | | ?????????? ?? ?????????## ####?????????? | | ????????????? ???????????####????????????? | | ?????????????????????????????????????????? | | ?????????????????????????????????????????? | | ?????????????????????????????????????????? | | ?????????????????????????????????????????? | | | | | | | | | | | | | | | | | | | | | | | +----------------------------------------------------+ Best States ------------- Heat Dissipation 42 Energy Generation 14 Energy Capacity 275 Matter Stores 300 Matter Capacity 300 Sight Range 16 Terrain Scan Density 10 Armor Coverage 150 Evasion (%) 40 Recoil Reduction 2 Item Schematics ----------------- Lrg. Storage Unit | -10/Materials | Hacked Med. Storage Unit | -10/Materials | Hacked ECM Suite | -9/Materials | Hacked Cooling System | -9/Materials | Hacked Robot Schematics ------------------ None Fabricated ------------ Nothing Alien Tech Used ----------------- None Achievements -------------- Exterminator Challenges ------------ None Game ------ Seed MachineFissionMace Manual? 0 Play Time 00:26:08 Cumulative 78.9 hours Start 2021.04.20 @ 22:13:21 End 2021.04.21 @ 09:15:47 Sessions 3 Manual Loads 0 Difficulty Rogue Special Mode None Game No. 53 Rogue 53 Adventurer 0 Explorer 0 Win Type - Total 0 Types 0/0/0/0/0/0/0/0/0 Lore% 25 Gallery% 44 Achievement% 31 Wizard Run 0 Options --------- ASCII 0 Keyboard 0 Movement Mouse Keybinds 0 Fullscreen 2 Font 18/SmallcapsGlow Map View 76x50 Tactical HUD 1 Map Filters NONE Filters NONE Steam 1 RUN: 2b50d9f4-ddc9-486a-bc29-7ae363bff60d